[Event "Titled Tuesday Blitz August 08 Late 2023"]
[White "Chen, Max"]
[Black "Bueno, Alfeu Junior Varela"]
[WhiteFideId "2622440"]
[BlackFideId "2108879"]
[WhiteElo "2570"]
[BlackElo "2426"]
[Result "1-0"]
[Round "9"]
[TimeControl "180+1"]
[Date "2023.08.08"]
[WhiteClock "0:00:15"]
[BlackClock "0:00:00"]
[Board "65"]

1. e4 {[%clk 0:03:00]}  e6 {[%clk 0:02:57]} 2. Qe2 {[%clk 0:02:45]}  e5 {[%clk 0:02:56]} 3. Nf3 {[%clk 0:02:45]}  Nc6 {[%clk 0:02:57]} 4. g3 {[%clk 0:02:45]}  Nf6 {[%clk 0:02:53]} 5. Bg2 {[%clk 0:02:45]}  Bc5 {[%clk 0:02:53]} 6. O-O {[%clk 0:02:45]}  O-O {[%clk 0:02:53]} 7. c3 {[%clk 0:02:44]}  Re8 {[%clk 0:02:47]} 8. b4 {[%clk 0:02:28]}  Bb6 {[%clk 0:02:43]} 9. b5 {[%clk 0:02:28]}  Nb8 {[%clk 0:02:42]} 10. a4 {[%clk 0:02:17]}  a6 {[%clk 0:02:35]} 11. Bb2 {[%clk 0:02:15]}  axb5 {[%clk 0:02:33]} 12. axb5 {[%clk 0:02:16]}  Rxa1 {[%clk 0:02:33]} 13. Bxa1 {[%clk 0:02:16]}  d5 {[%clk 0:01:58]} 14. exd5 {[%clk 0:02:15]}  e4 {[%clk 0:01:50]} 15. Ne1 {[%clk 0:02:03]}  Bg4 {[%clk 0:01:30]} 16. Qc4 {[%clk 0:02:02]}  Qxd5 {[%clk 0:01:25]} 17. Qxd5 {[%clk 0:01:46]}  Nxd5 {[%clk 0:01:26]} 18. c4 {[%clk 0:01:47]}  Nb4 {[%clk 0:01:12]} 19. Bc3 {[%clk 0:01:43]}  Na2 {[%clk 0:01:03]} 20. Nc2 {[%clk 0:01:35]}  Be2 {[%clk 0:01:02]} 21. Re1 {[%clk 0:01:34]}  Bd3 {[%clk 0:01:02]} 22. Nba3 {[%clk 0:01:23]}  Nxc3 {[%clk 0:00:57]} 23. dxc3 {[%clk 0:01:24]}  Nd7 {[%clk 0:00:46]} 24. Nb4 {[%clk 0:01:24]}  Nf6 {[%clk 0:00:29]} 25. Nxd3 {[%clk 0:01:04]}  exd3 {[%clk 0:00:28]} 26. Rxe8+ {[%clk 0:01:04]}  Nxe8 {[%clk 0:00:28]} 27. Nb1 {[%clk 0:01:04]}  Nd6 {[%clk 0:00:18]} 28. Bd5 {[%clk 0:01:04]}  Ba5 {[%clk 0:00:16]} 29. Kf1 {[%clk 0:01:04]}  c6 {[%clk 0:00:16]} 30. bxc6 {[%clk 0:00:59]}  bxc6 {[%clk 0:00:17]} 31. c5 {[%clk 0:00:54]}  Nb7 {[%clk 0:00:11]} 32. Bxc6 {[%clk 0:00:47]}  Nxc5 {[%clk 0:00:11]} 33. Ke1 {[%clk 0:00:44]}  f5 {[%clk 0:00:10]} 34. Kd2 {[%clk 0:00:44]}  Kf7 {[%clk 0:00:03]} 35. f3 {[%clk 0:00:41]}  Ke6 {[%clk 0:00:03]} 36. Bb5 {[%clk 0:00:42]}  Ke5 {[%clk 0:00:03]} 37. Bxd3 {[%clk 0:00:40]}  Nb3+ {[%clk 0:00:01]} 38. Ke3 {[%clk 0:00:40]}  Nc5 {[%clk 0:00:01]} 39. Bc2 {[%clk 0:00:33]}  g6 {[%clk 0:00:01]} 40. h4 {[%clk 0:00:21]}  Kd5 {[%clk 0:00:02]} 41. Kd2 {[%clk 0:00:17]}  Kc4 {[%clk 0:00:02]} 42. Na3+ {[%clk 0:00:17]}  Kd5 {[%clk 0:00:02]} 43. Bd3 {[%clk 0:00:16]}  Ke5 {[%clk 0:00:01]} 44. Nc4+ {[%clk 0:00:15]}  Kd5 {[%clk 0:00:00]} 45. Nxa5 {[%clk 0:00:15]} 1-0


[Site "https://www.chess.com"]

[Event "Titled Tuesday Blitz August 08 Late 2023"]
[White "Muhammad Shahzeb"]
[Black "Slaby, Jerzy"]
[WhiteFideId "7804806"]
[BlackFideId "1121405"]
[WhiteElo "2394"]
[BlackElo "2538"]
[Result "1-0"]
[Round "9"]
[TimeControl "180+1"]
[Date "2023.08.08"]
[WhiteClock "0:00:08"]
[BlackClock "0:00:09"]
[Board "68"]

1. e4 {[%clk 0:03:00]}  c5 {[%clk 0:02:55]} 2. Nc3 {[%clk 0:02:59]}  d6 {[%clk 0:02:53]} 3. f4 {[%clk 0:03:00]}  g6 {[%clk 0:02:53]} 4. Nf3 {[%clk 0:03:00]}  Bg7 {[%clk 0:02:52]} 5. Bc4 {[%clk 0:03:00]}  e6 {[%clk 0:02:52]} 6. O-O {[%clk 0:02:59]}  Ne7 {[%clk 0:02:49]} 7. d3 {[%clk 0:02:58]}  Nbc6 {[%clk 0:02:45]} 8. f5 {[%clk 0:02:58]}  d5 {[%clk 0:02:43]} 9. Bb5 {[%clk 0:02:50]}  dxe4 {[%clk 0:02:39]} 10. fxe6 {[%clk 0:02:21]}  Bxe6 {[%clk 0:02:37]} 11. Nxe4 {[%clk 0:02:14]}  O-O {[%clk 0:02:34]} 12. Kh1 {[%clk 0:02:06]}  Nd4 {[%clk 0:02:18]} 13. Bc4 {[%clk 0:01:58]}  Bxc4 {[%clk 0:02:14]} 14. dxc4 {[%clk 0:01:58]}  Nef5 {[%clk 0:02:14]} 15. Nxc5 {[%clk 0:01:50]}  Qc7 {[%clk 0:02:03]} 16. Nxd4 {[%clk 0:01:50]}  Nxd4 {[%clk 0:01:58]} 17. Nb3 {[%clk 0:01:37]}  Qxc4 {[%clk 0:01:41]} 18. Nxd4 {[%clk 0:01:34]}  Bxd4 {[%clk 0:01:38]} 19. Bh6 {[%clk 0:01:29]}  Rfd8 {[%clk 0:01:35]} 20. Qg4 {[%clk 0:01:04]}  Rac8 {[%clk 0:01:32]} 21. Rad1 {[%clk 0:00:53]}  b5 {[%clk 0:01:08]} 22. Rf4 {[%clk 0:00:44]}  f5 {[%clk 0:00:44]} 23. Qf3 {[%clk 0:00:22]}  Qc5 {[%clk 0:00:38]} 24. Bg5 {[%clk 0:00:20]}  Rd6 {[%clk 0:00:29]} 25. Be7 {[%clk 0:00:18]}  Be5 {[%clk 0:00:24]} 26. Bxd6 {[%clk 0:00:16]}  Bxd6 {[%clk 0:00:25]} 27. Qb3+ {[%clk 0:00:13]}  Kg7 {[%clk 0:00:23]} 28. Rfd4 {[%clk 0:00:13]}  Rc6 {[%clk 0:00:18]} 29. Qe6 {[%clk 0:00:13]}  Be5 {[%clk 0:00:06]} 30. Rd7+ {[%clk 0:00:07]}  Kh6 {[%clk 0:00:06]} 31. Qb3 {[%clk 0:00:06]}  Qxc2 {[%clk 0:00:05]} 32. Qh3+ {[%clk 0:00:06]}  Kg5 {[%clk 0:00:06]} 33. Qe3+ {[%clk 0:00:05]}  Bf4 {[%clk 0:00:05]} 34. h4+ {[%clk 0:00:05]}  Kg4 {[%clk 0:00:05]} 35. Qf3+ {[%clk 0:00:05]}  Kxh4 {[%clk 0:00:04]} 36. Qxf4+ {[%clk 0:00:06]}  Kh5 {[%clk 0:00:05]} 37. Qf3+ {[%clk 0:00:05]}  Kg5 {[%clk 0:00:05]} 38. Qg3+ {[%clk 0:00:06]}  Kf6 {[%clk 0:00:06]} 39. Qh4+ {[%clk 0:00:05]}  Ke6 {[%clk 0:00:06]} 40. Qd4 {[%clk 0:00:06]}  Qe4 {[%clk 0:00:04]} 41. Rd6+ {[%clk 0:00:04]}  Ke7 {[%clk 0:00:03]} 42. Rxc6 {[%clk 0:00:03]}  Qxc6 {[%clk 0:00:03]} 43. Qd8+ {[%clk 0:00:03]}  Ke6 {[%clk 0:00:04]} 44. Qg8+ {[%clk 0:00:02]}  Ke5 {[%clk 0:00:05]} 45. Qxh7 {[%clk 0:00:03]}  Kf4 {[%clk 0:00:05]} 46. Qh2+ {[%clk 0:00:03]}  Kg4 {[%clk 0:00:05]} 47. Qh3+ {[%clk 0:00:04]}  Kg5 {[%clk 0:00:06]} 48. Qf3 {[%clk 0:00:05]}  Kf6 {[%clk 0:00:07]} 49. Rf1 {[%clk 0:00:05]}  Qc4 {[%clk 0:00:08]} 50. Qd1 {[%clk 0:00:06]}  Qh4+ {[%clk 0:00:08]} 51. Kg1 {[%clk 0:00:06]}  Qg5 {[%clk 0:00:09]} 52. Rf2 {[%clk 0:00:06]}  Qe3 {[%clk 0:00:10]} 53. Qf3 {[%clk 0:00:07]}  Kg7 {[%clk 0:00:11]} 54. Qxe3 {[%clk 0:00:07]}  f4 {[%clk 0:00:09]} 55. Qd4+ {[%clk 0:00:08]} 1-0


[Site "https://www.chess.com"]

[Event "Titled Tuesday Blitz August 08 Late 2023"]
[White "Sam, Gabriel"]
[Black "Dwilewicz, Katarzyna"]
[WhiteFideId "75000776"]
[BlackFideId "1148486"]
[WhiteElo "2535"]
[BlackElo "2385"]
[Result "0-1"]
[Round "9"]
[TimeControl "180+1"]
[Date "2023.08.08"]
[WhiteClock "0:00:02"]
[BlackClock "0:00:15"]
[Board "70"]

1. e4 {[%clk 0:03:00]}  c5 {[%clk 0:02:56]} 2. Nf3 {[%clk 0:02:53]}  d6 {[%clk 0:02:56]} 3. d4 {[%clk 0:02:48]}  cxd4 {[%clk 0:02:57]} 4. Nxd4 {[%clk 0:02:48]}  Nf6 {[%clk 0:02:56]} 5. f3 {[%clk 0:02:43]}  e5 {[%clk 0:02:56]} 6. Nb3 {[%clk 0:02:40]}  a5 {[%clk 0:02:56]} 7. a4 {[%clk 0:02:29]}  Be7 {[%clk 0:02:53]} 8. Nc3 {[%clk 0:02:26]}  O-O {[%clk 0:02:52]} 9. Be3 {[%clk 0:02:26]}  Be6 {[%clk 0:02:51]} 10. Bb5 {[%clk 0:02:24]}  Nc6 {[%clk 0:02:47]} 11. O-O {[%clk 0:02:24]}  d5 {[%clk 0:02:46]} 12. exd5 {[%clk 0:02:22]}  Nxd5 {[%clk 0:02:46]} 13. Nxd5 {[%clk 0:02:22]}  Bxd5 {[%clk 0:02:45]} 14. Qe2 {[%clk 0:02:13]}  Be6 {[%clk 0:02:36]} 15. Rad1 {[%clk 0:02:09]}  Qc7 {[%clk 0:02:37]} 16. Qf2 {[%clk 0:02:07]}  Rac8 {[%clk 0:02:26]} 17. Bb6 {[%clk 0:02:04]}  Qb8 {[%clk 0:02:25]} 18. Nc5 {[%clk 0:01:45]}  Nd4 {[%clk 0:02:12]} 19. Nxe6 {[%clk 0:01:29]}  Nxe6 {[%clk 0:02:11]} 20. c3 {[%clk 0:01:19]}  Bc5 {[%clk 0:02:09]} 21. Bxc5 {[%clk 0:01:19]}  Rxc5 {[%clk 0:02:07]} 22. Rd7 {[%clk 0:01:17]}  Rd8 {[%clk 0:01:57]} 23. Rfd1 {[%clk 0:01:16]}  Rxd7 {[%clk 0:01:56]} 24. Rxd7 {[%clk 0:01:17]}  Qc8 {[%clk 0:01:55]} 25. Qd2 {[%clk 0:01:11]}  g6 {[%clk 0:01:49]} 26. h4 {[%clk 0:00:58]}  Rc7 {[%clk 0:01:47]} 27. Rd6 {[%clk 0:00:55]}  h5 {[%clk 0:01:40]} 28. Bd7 {[%clk 0:00:39]}  Rxd7 {[%clk 0:01:35]} 29. Rxd7 {[%clk 0:00:38]}  Qc4 {[%clk 0:01:19]} 30. Rxb7 {[%clk 0:00:26]}  Qxh4 {[%clk 0:01:17]} 31. b4 {[%clk 0:00:11]}  axb4 {[%clk 0:01:08]} 32. Rxb4 {[%clk 0:00:12]}  Qe7 {[%clk 0:01:00]} 33. a5 {[%clk 0:00:12]}  Qc5+ {[%clk 0:01:00]} 34. Kh2 {[%clk 0:00:11]}  Qxa5 {[%clk 0:01:00]} 35. Qh6 {[%clk 0:00:11]}  Qd8 {[%clk 0:00:55]} 36. Qe3 {[%clk 0:00:10]}  Qd6 {[%clk 0:00:45]} 37. Qa7 {[%clk 0:00:10]}  Kg7 {[%clk 0:00:36]} 38. Qe3 {[%clk 0:00:09]}  Nf4 {[%clk 0:00:26]} 39. Rb6 {[%clk 0:00:08]}  Qe7 {[%clk 0:00:22]} 40. Rb5 {[%clk 0:00:06]}  Qh4+ {[%clk 0:00:18]} 41. Kg1 {[%clk 0:00:06]}  Qg5 {[%clk 0:00:18]} 42. Rb2 {[%clk 0:00:01]}  Nh3+ {[%clk 0:00:16]} 43. Kh2 {[%clk 0:00:01]}  Qxe3 {[%clk 0:00:17]} 44. Kxh3 {[%clk 0:00:01]}  Qxc3 {[%clk 0:00:16]} 45. Re2 {[%clk 0:00:02]}  Qc7 {[%clk 0:00:15]} 46. Re4 {[%clk 0:00:02]}  f5 {[%clk 0:00:16]} 47. Re2 {[%clk 0:00:02]}  Kf6 {[%clk 0:00:16]} 48. Kg3 {[%clk 0:00:02]}  g5 {[%clk 0:00:17]} 49. Kf2 {[%clk 0:00:03]}  h4 {[%clk 0:00:17]} 50. Kg1 {[%clk 0:00:02]}  Qc5+ {[%clk 0:00:17]} 51. Kh2 {[%clk 0:00:02]}  Qd5 {[%clk 0:00:18]} 52. Rb2 {[%clk 0:00:03]}  e4 {[%clk 0:00:18]} 53. Rb6+ {[%clk 0:00:03]}  Ke5 {[%clk 0:00:18]} 54. fxe4 {[%clk 0:00:03]}  Qxe4 {[%clk 0:00:18]} 55. Rb5+ {[%clk 0:00:03]}  Kf4 {[%clk 0:00:17]} 56. Rb3 {[%clk 0:00:04]}  g4 {[%clk 0:00:16]} 57. Rg3 {[%clk 0:00:01]}  hxg3+ {[%clk 0:00:15]} 58. Kh1 {[%clk 0:00:02]}  Qe1# {[%clk 0:00:15]} 0-1


[Site "https://www.chess.com"]

[Event "Titled Tuesday Blitz August 08 Late 2023"]
[White "Stachanczyk, Jacek"]
[Black "Chor, Kevin"]
[WhiteFideId "1116657"]
[BlackFideId "2090740"]
[WhiteElo "2340"]
[BlackElo "2517"]
[Result "1/2-1/2"]
[Round "9"]
[TimeControl "180+1"]
[Date "2023.08.08"]
[WhiteClock "0:01:18"]
[BlackClock "0:00:06"]
[Board "72"]

1. d4 {[%clk 0:02:58]}  Nf6 {[%clk 0:03:00]} 2. c4 {[%clk 0:02:57]}  g6 {[%clk 0:03:00]} 3. g3 {[%clk 0:02:56]}  Bg7 {[%clk 0:03:00]} 4. Bg2 {[%clk 0:02:56]}  O-O {[%clk 0:03:00]} 5. e4 {[%clk 0:02:56]}  d6 {[%clk 0:03:00]} 6. Nc3 {[%clk 0:02:56]}  Nc6 {[%clk 0:02:57]} 7. Nge2 {[%clk 0:02:55]}  Bg4 {[%clk 0:02:46]} 8. f3 {[%clk 0:02:55]}  Bd7 {[%clk 0:02:46]} 9. d5 {[%clk 0:02:53]}  Na5 {[%clk 0:02:44]} 10. b3 {[%clk 0:02:51]}  c5 {[%clk 0:02:42]} 11. dxc6 {[%clk 0:02:39]}  Nxc6 {[%clk 0:02:27]} 12. Be3 {[%clk 0:02:39]}  Rc8 {[%clk 0:02:12]} 13. O-O {[%clk 0:02:37]}  Re8 {[%clk 0:02:04]} 14. Rc1 {[%clk 0:02:36]}  Qa5 {[%clk 0:02:03]} 15. Qd2 {[%clk 0:02:33]}  a6 {[%clk 0:02:01]} 16. Rfd1 {[%clk 0:02:29]}  b5 {[%clk 0:01:52]} 17. Nd5 {[%clk 0:02:21]}  Qxd2 {[%clk 0:01:31]} 18. Bxd2 {[%clk 0:02:22]}  bxc4 {[%clk 0:01:26]} 19. Nxf6+ {[%clk 0:02:17]}  Bxf6 {[%clk 0:01:25]} 20. Rxc4 {[%clk 0:02:18]}  Ne5 {[%clk 0:01:19]} 21. Rxc8 {[%clk 0:02:06]}  Rxc8 {[%clk 0:01:20]} 22. Rc1 {[%clk 0:02:04]}  Rxc1+ {[%clk 0:01:05]} 23. Nxc1 {[%clk 0:02:05]}  Kf8 {[%clk 0:00:59]} 24. Kf2 {[%clk 0:01:59]}  Bb5 {[%clk 0:00:54]} 25. h3 {[%clk 0:01:56]}  Nd3+ {[%clk 0:00:52]} 26. Nxd3 {[%clk 0:01:55]}  Bxd3 {[%clk 0:00:53]} 27. Bf1 {[%clk 0:01:50]}  Bd4+ {[%clk 0:00:51]} 28. Kg2 {[%clk 0:01:48]}  Bxf1+ {[%clk 0:00:51]} 29. Kxf1 {[%clk 0:01:49]}  Ke8 {[%clk 0:00:50]} 30. Ke2 {[%clk 0:01:49]}  Kd7 {[%clk 0:00:49]} 31. Kd3 {[%clk 0:01:49]}  Bf2 {[%clk 0:00:50]} 32. g4 {[%clk 0:01:50]}  Kc6 {[%clk 0:00:48]} 33. Kc4 {[%clk 0:01:47]}  e6 {[%clk 0:00:47]} 34. a4 {[%clk 0:01:41]}  h5 {[%clk 0:00:45]} 35. b4 {[%clk 0:01:39]}  d5+ {[%clk 0:00:39]} 36. exd5+ {[%clk 0:01:39]}  exd5+ {[%clk 0:00:40]} 37. Kd3 {[%clk 0:01:39]}  Kd6 {[%clk 0:00:36]} 38. Bc3 {[%clk 0:01:35]}  Ke6 {[%clk 0:00:34]} 39. b5 {[%clk 0:01:34]}  axb5 {[%clk 0:00:32]} 40. axb5 {[%clk 0:01:34]}  hxg4 {[%clk 0:00:27]} 41. hxg4 {[%clk 0:01:34]}  f5 {[%clk 0:00:26]} 42. Bd4 {[%clk 0:01:32]}  Bg3 {[%clk 0:00:26]} 43. Bc5 {[%clk 0:01:29]}  fxg4 {[%clk 0:00:20]} 44. fxg4 {[%clk 0:01:29]}  Kf6 {[%clk 0:00:21]} 45. Kd4 {[%clk 0:01:26]}  Ke6 {[%clk 0:00:12]} 46. Kd3 {[%clk 0:01:26]}  Kf6 {[%clk 0:00:12]} 47. b6 {[%clk 0:01:25]}  Kg5 {[%clk 0:00:10]} 48. Be7+ {[%clk 0:01:21]}  Kxg4 {[%clk 0:00:08]} 49. Bd8 {[%clk 0:01:22]}  Bf2 {[%clk 0:00:03]} 50. b7 {[%clk 0:01:20]}  Ba7 {[%clk 0:00:04]} 51. Bc7 {[%clk 0:01:18]}  Kf5 {[%clk 0:00:04]} 52. b8=Q {[%clk 0:01:17]}  Bxb8 {[%clk 0:00:04]} 53. Bxb8 {[%clk 0:01:18]}  g5 {[%clk 0:00:05]} 54. Kd4 {[%clk 0:01:18]}  g4 {[%clk 0:00:05]} 55. Kxd5 {[%clk 0:01:19]}  g3 {[%clk 0:00:06]} 56. Bxg3 {[%clk 0:01:18]} 1/2-1/2


[Site "https://www.chess.com"]

[Event "Titled Tuesday Blitz August 08 Late 2023"]
[White "Lopez Idarraga, Daniel Eduardo"]
[Black "Yu, Jennifer"]
[WhiteFideId "4405501"]
[BlackFideId "2078341"]
[WhiteElo "2339"]
[BlackElo "2506"]
[Result "1-0"]
[Round "9"]
[TimeControl "180+1"]
[Date "2023.08.08"]
[WhiteClock "0:00:44"]
[BlackClock "0:00:07"]
[Board "74"]

1. d4 {[%clk 0:03:00]}  d5 {[%clk 0:02:59]} 2. Nf3 {[%clk 0:03:00]}  Nf6 {[%clk 0:02:59]} 3. Bf4 {[%clk 0:02:59]}  c5 {[%clk 0:02:57]} 4. c3 {[%clk 0:02:59]}  Nc6 {[%clk 0:02:57]} 5. e3 {[%clk 0:02:59]}  cxd4 {[%clk 0:02:58]} 6. exd4 {[%clk 0:02:58]}  Bf5 {[%clk 0:02:57]} 7. Qb3 {[%clk 0:02:57]}  Qc8 {[%clk 0:02:55]} 8. Nbd2 {[%clk 0:02:55]}  e6 {[%clk 0:02:54]} 9. Bb5 {[%clk 0:02:53]}  Be7 {[%clk 0:02:54]} 10. Ne5 {[%clk 0:02:52]}  O-O {[%clk 0:02:53]} 11. O-O {[%clk 0:02:51]}  Ne4 {[%clk 0:02:47]} 12. Nxe4 {[%clk 0:02:51]}  Bxe4 {[%clk 0:02:48]} 13. Rae1 {[%clk 0:02:49]}  Bf6 {[%clk 0:02:42]} 14. f3 {[%clk 0:02:48]}  Bf5 {[%clk 0:02:40]} 15. Qa4 {[%clk 0:02:41]}  Nxe5 {[%clk 0:02:37]} 16. Bxe5 {[%clk 0:02:41]}  Bxe5 {[%clk 0:02:35]} 17. Rxe5 {[%clk 0:02:42]}  a6 {[%clk 0:02:36]} 18. Be2 {[%clk 0:02:29]}  b5 {[%clk 0:02:34]} 19. Qd1 {[%clk 0:02:24]}  Qb7 {[%clk 0:02:24]} 20. Bd3 {[%clk 0:02:23]}  Bxd3 {[%clk 0:02:21]} 21. Qxd3 {[%clk 0:02:24]}  b4 {[%clk 0:02:21]} 22. f4 {[%clk 0:02:24]}  bxc3 {[%clk 0:02:20]} 23. bxc3 {[%clk 0:02:25]}  Rac8 {[%clk 0:02:18]} 24. f5 {[%clk 0:02:25]}  exf5 {[%clk 0:02:05]} 25. Rexf5 {[%clk 0:02:12]}  Qb2 {[%clk 0:01:53]} 26. Qf3 {[%clk 0:01:43]}  Rxc3 {[%clk 0:01:47]} 27. Qxd5 {[%clk 0:01:42]}  Rc7 {[%clk 0:01:38]} 28. a4 {[%clk 0:01:40]}  Qd2 {[%clk 0:01:28]} 29. a5 {[%clk 0:01:38]}  Qe3+ {[%clk 0:01:25]} 30. Kh1 {[%clk 0:01:36]}  g6 {[%clk 0:01:21]} 31. Rf6 {[%clk 0:01:34]}  Qe2 {[%clk 0:01:16]} 32. h3 {[%clk 0:01:33]}  Re7 {[%clk 0:01:06]} 33. R1f2 {[%clk 0:01:31]}  Qe1+ {[%clk 0:01:03]} 34. Kh2 {[%clk 0:01:29]}  Kg7 {[%clk 0:01:01]} 35. R2f3 {[%clk 0:01:27]}  Qe2 {[%clk 0:00:43]} 36. Qd6 {[%clk 0:01:21]}  Qe4 {[%clk 0:00:23]} 37. R3f4 {[%clk 0:01:17]}  Qe3 {[%clk 0:00:16]} 38. Qxa6 {[%clk 0:01:15]}  Rd8 {[%clk 0:00:16]} 39. Qb6 {[%clk 0:01:12]}  Rd5 {[%clk 0:00:16]} 40. a6 {[%clk 0:01:00]}  Rg5 {[%clk 0:00:15]} 41. Rf3 {[%clk 0:00:55]}  Qe2 {[%clk 0:00:13]} 42. Rf2 {[%clk 0:00:54]}  Qe3 {[%clk 0:00:11]} 43. R6f3 {[%clk 0:00:52]}  Qe4 {[%clk 0:00:08]} 44. Qf6+ {[%clk 0:00:51]}  Kg8 {[%clk 0:00:07]} 45. Qxg5 {[%clk 0:00:44]} 1-0


[Site "https://www.chess.com"]

[Event "Titled Tuesday Blitz August 08 Late 2023"]
[White "The_Straightforward_Rook"]
[Black "Jovic, Stanoje"]
[BlackFideId "905020"]
[WhiteElo "2298"]
[BlackElo "2494"]
[Result "1-0"]
[Round "9"]
[TimeControl "180+1"]
[Date "2023.08.08"]
[WhiteClock "0:00:51"]
[BlackClock "0:00:00"]
[Board "75"]

1. d4 {[%clk 0:03:00]}  Nf6 {[%clk 0:02:59]} 2. c4 {[%clk 0:03:00]}  e6 {[%clk 0:02:59]} 3. Nf3 {[%clk 0:03:00]}  d5 {[%clk 0:02:58]} 4. cxd5 {[%clk 0:03:01]}  exd5 {[%clk 0:02:56]} 5. Nc3 {[%clk 0:03:02]}  c6 {[%clk 0:02:53]} 6. Qc2 {[%clk 0:03:03]}  Bd6 {[%clk 0:02:49]} 7. Bg5 {[%clk 0:03:02]}  O-O {[%clk 0:02:47]} 8. e3 {[%clk 0:03:02]}  Nbd7 {[%clk 0:02:46]} 9. Bd3 {[%clk 0:03:03]}  h6 {[%clk 0:02:45]} 10. Bh4 {[%clk 0:03:03]}  Re8 {[%clk 0:02:43]} 11. O-O {[%clk 0:03:03]}  Qe7 {[%clk 0:02:40]} 12. Rae1 {[%clk 0:03:00]}  g5 {[%clk 0:02:36]} 13. Bg3 {[%clk 0:03:00]}  Bxg3 {[%clk 0:02:36]} 14. hxg3 {[%clk 0:03:01]}  Ne4 {[%clk 0:02:33]} 15. Nd2 {[%clk 0:02:57]}  Ndf6 {[%clk 0:02:30]} 16. Bxe4 {[%clk 0:02:55]}  dxe4 {[%clk 0:02:28]} 17. Nc4 {[%clk 0:02:50]}  Ng4 {[%clk 0:02:19]} 18. f3 {[%clk 0:02:39]}  exf3 {[%clk 0:02:17]} 19. gxf3 {[%clk 0:02:40]}  b5 {[%clk 0:02:06]} 20. fxg4 {[%clk 0:02:11]}  bxc4 {[%clk 0:02:04]} 21. e4 {[%clk 0:01:50]}  Bxg4 {[%clk 0:02:01]} 22. e5 {[%clk 0:01:51]}  Bh5 {[%clk 0:01:54]} 23. Ne4 {[%clk 0:01:44]}  Bg6 {[%clk 0:01:54]} 24. Qxc4 {[%clk 0:01:44]}  Bxe4 {[%clk 0:01:50]} 25. Rxe4 {[%clk 0:01:45]}  Qe6 {[%clk 0:01:48]} 26. b3 {[%clk 0:01:33]}  Qxc4 {[%clk 0:01:44]} 27. bxc4 {[%clk 0:01:34]}  Rab8 {[%clk 0:01:43]} 28. Rf6 {[%clk 0:01:25]}  Rb2 {[%clk 0:01:28]} 29. Rxc6 {[%clk 0:01:21]}  Rxa2 {[%clk 0:01:26]} 30. Kf1 {[%clk 0:01:12]}  Rb8 {[%clk 0:01:22]} 31. Re2 {[%clk 0:01:12]}  Rb1+ {[%clk 0:00:52]} 32. Kf2 {[%clk 0:01:11]}  Rxe2+ {[%clk 0:00:44]} 33. Kxe2 {[%clk 0:01:12]}  Rb4 {[%clk 0:00:38]} 34. d5 {[%clk 0:01:10]}  Kf8 {[%clk 0:00:35]} 35. d6 {[%clk 0:01:10]}  Ke8 {[%clk 0:00:33]} 36. Rc7 {[%clk 0:01:03]}  a5 {[%clk 0:00:28]} 37. Kd3 {[%clk 0:01:02]}  a4 {[%clk 0:00:27]} 38. Ra7 {[%clk 0:01:01]}  h5 {[%clk 0:00:19]} 39. c5 {[%clk 0:00:53]}  Rb3+ {[%clk 0:00:00]} 40. Kc4 {[%clk 0:00:51]} 1-0


[Site "https://www.chess.com"]

[Event "Titled Tuesday Blitz August 08 Late 2023"]
[White "Kula, Robert"]
[Black "Sadilek, Peter"]
[WhiteFideId "1101218"]
[BlackFideId "1616439"]
[WhiteElo "2263"]
[BlackElo "2484"]
[Result "0-1"]
[Round "9"]
[TimeControl "180+1"]
[Date "2023.08.08"]
[WhiteClock "0:00:00"]
[BlackClock "0:02:01"]
[Board "76"]

1. e4 {[%clk 0:03:00]}  d6 {[%clk 0:02:54]} 2. d4 {[%clk 0:03:00]}  Nf6 {[%clk 0:02:54]} 3. Bd3 {[%clk 0:02:58]}  e5 {[%clk 0:02:54]} 4. Nf3 {[%clk 0:02:54]}  Nc6 {[%clk 0:02:50]} 5. d5 {[%clk 0:02:53]}  Nb4 {[%clk 0:02:46]} 6. O-O {[%clk 0:02:51]}  Nxd3 {[%clk 0:02:46]} 7. Qxd3 {[%clk 0:02:50]}  Be7 {[%clk 0:02:47]} 8. c4 {[%clk 0:02:50]}  O-O {[%clk 0:02:48]} 9. Nc3 {[%clk 0:02:49]}  Nh5 {[%clk 0:02:32]} 10. h3 {[%clk 0:02:42]}  f5 {[%clk 0:02:32]} 11. exf5 {[%clk 0:02:28]}  Bxf5 {[%clk 0:02:33]} 12. Ne4 {[%clk 0:02:28]}  Qe8 {[%clk 0:02:23]} 13. Qe2 {[%clk 0:00:56]}  Qg6 {[%clk 0:02:17]} 14. Ng3 {[%clk 0:00:24]}  Nxg3 {[%clk 0:02:08]} 15. fxg3 {[%clk 0:00:24]}  Bd3 {[%clk 0:02:09]} 16. Qe1 {[%clk 0:00:17]}  Bxf1 {[%clk 0:02:09]} 17. Qxf1 {[%clk 0:00:14]}  e4 {[%clk 0:02:10]} 18. Qe2 {[%clk 0:00:12]}  exf3 {[%clk 0:02:07]} 19. Qxe7 {[%clk 0:00:12]}  f2+ {[%clk 0:02:05]} 20. Kf1 {[%clk 0:00:11]}  Qd3+ {[%clk 0:02:04]} 21. Qe2 {[%clk 0:00:09]}  Qxe2+ {[%clk 0:02:04]} 22. Kxe2 {[%clk 0:00:10]}  f1=Q+ {[%clk 0:02:05]} 23. Kd2 {[%clk 0:00:00]}  Qxc4 {[%clk 0:02:01]} 0-1


[Site "https://www.chess.com"]

[Event "Titled Tuesday Blitz August 08 Late 2023"]
[White "Altman, Joshua"]
[Black "Hng, Mei-En Emmanuelle"]
[WhiteFideId "426210"]
[BlackFideId "5804566"]
[WhiteElo "2574"]
[BlackElo "2286"]
[Result "1-0"]
[Round "9"]
[TimeControl "180+1"]
[Date "2023.08.08"]
[WhiteClock "0:00:08"]
[BlackClock "0:00:08"]
[Board "77"]

1. Nf3 {[%clk 0:03:00]}  Nf6 {[%clk 0:02:58]} 2. b3 {[%clk 0:03:00]}  e6 {[%clk 0:02:34]} 3. Bb2 {[%clk 0:02:59]}  d5 {[%clk 0:02:34]} 4. g3 {[%clk 0:02:59]}  Be7 {[%clk 0:02:32]} 5. Bg2 {[%clk 0:03:00]}  O-O {[%clk 0:02:32]} 6. O-O {[%clk 0:03:00]}  a5 {[%clk 0:02:24]} 7. a3 {[%clk 0:02:55]}  c5 {[%clk 0:02:16]} 8. d4 {[%clk 0:02:45]}  c4 {[%clk 0:02:09]} 9. bxc4 {[%clk 0:02:42]}  dxc4 {[%clk 0:02:10]} 10. Ne5 {[%clk 0:02:42]}  Bd7 {[%clk 0:01:54]} 11. Nxc4 {[%clk 0:02:32]}  Bc6 {[%clk 0:01:54]} 12. Bxc6 {[%clk 0:02:05]}  Nxc6 {[%clk 0:01:55]} 13. e3 {[%clk 0:01:57]}  Qd5 {[%clk 0:01:36]} 14. Nb6 {[%clk 0:01:53]}  Qb5 {[%clk 0:01:34]} 15. Nxa8 {[%clk 0:01:49]}  Qxb2 {[%clk 0:01:34]} 16. Nd2 {[%clk 0:01:33]}  Rxa8 {[%clk 0:01:34]} 17. Rb1 {[%clk 0:01:34]}  Qxa3 {[%clk 0:01:32]} 18. Rxb7 {[%clk 0:01:33]}  Bb4 {[%clk 0:01:17]} 19. Nc4 {[%clk 0:01:30]}  Qc3 {[%clk 0:01:15]} 20. Nb6 {[%clk 0:01:18]}  Rb8 {[%clk 0:01:03]} 21. Rxb8+ {[%clk 0:01:12]}  Nxb8 {[%clk 0:01:04]} 22. Qf3 {[%clk 0:01:11]}  h6 {[%clk 0:00:49]} 23. Qa8 {[%clk 0:00:52]}  Qc7 {[%clk 0:00:48]} 24. Na4 {[%clk 0:00:46]}  Nd7 {[%clk 0:00:41]} 25. c4 {[%clk 0:00:34]}  Kh7 {[%clk 0:00:21]} 26. Qe4+ {[%clk 0:00:29]}  g6 {[%clk 0:00:21]} 27. c5 {[%clk 0:00:22]}  Qc6 {[%clk 0:00:18]} 28. Qc2 {[%clk 0:00:19]}  Nf6 {[%clk 0:00:17]} 29. Nb6 {[%clk 0:00:17]}  h5 {[%clk 0:00:12]} 30. Nc4 {[%clk 0:00:17]}  Nbd7 {[%clk 0:00:12]} 31. Ra1 {[%clk 0:00:16]}  Qb5 {[%clk 0:00:10]} 32. Nd6 {[%clk 0:00:15]}  Qc6 {[%clk 0:00:09]} 33. Nxf7 {[%clk 0:00:15]}  Ng4 {[%clk 0:00:08]} 34. Ng5+ {[%clk 0:00:13]}  Kh6 {[%clk 0:00:09]} 35. Nh3 {[%clk 0:00:09]}  Qf3 {[%clk 0:00:08]} 36. Nf4 {[%clk 0:00:08]}  Ndf6 {[%clk 0:00:08]} 37. Qxg6# {[%clk 0:00:08]} 1-0


[Site "https://www.chess.com"]